bitfinex-derivatives/quotes_BTCF0:USTF0_20250716
["timestamp","ask_amount","ask_price","bid_price","bid_amount"]
[1752647534495,0.00958129,118190.0,118180.0,0.79315288]
[1752647534704,0.17899279,118190.0,118180.0,0.79315288]
[1752647534900,0.17899279,118190.0,118180.0,1.15395288]
[1752647535100,0.00978129,118190.0,118180.0,1.15395288]
[1752647536499,0.00978129,118190.0,118180.0,1.15095288]
[1752647536998,0.0012,118190.0,118180.0,0.78153087]
[1752647537204,0.1704115,118190.0,118180.0,0.78153087]
[1752647537805,0.17906934,118190.0,118180.0,0.78153087]
[1752647538706,0.1704115,118190.0,118180.0,1.15095288]
[1752647538903,0.0012,118190.0,118180.0,1.15095288]
[1752647545113,0.0012,118190.0,118180.0,0.78153087]
[1752647545612,0.0012,118190.0,118180.0,1.15095288]
[1752647546409,0.0012,118190.0,118180.0,1.74727288]
[1752647547314,0.0012,118190.0,118180.0,1.37785087]
[1752647547511,0.0012,118190.0,118180.0,1.74727288]
[1752647550118,0.0012,118190.0,118180.0,1.37785087]
[1752647550319,0.0012,118190.0,118180.0,1.74727288]
[1752647553420,0.0012,118190.0,118180.0,1.77359479]
[1752647557615,0.0012,118190.0,118180.0,1.77359927]
[1752647568342,0.0012,118190.0,118180.0,1.17727927]
[1752647568641,0.0012,118190.0,118180.0,1.77315927]
[1752647573145,0.01350995,118200.0,118190.0,0.1717018]
[1752647573347,0.43530124,118200.0,118190.0,0.9332402]
[1752647574245,0.43530124,118200.0,118190.0,0.9362402]
[1752647575146,0.43530124,118200.0,118190.0,1.1642312]
[1752647575734,0.43992124,118200.0,118190.0,1.1642312]
[1752647575944,0.43992124,118200.0,118190.0,1.1612312]
[1752647576845,0.43141129,118200.0,118190.0,1.1582312]
[1752647577246,0.43141129,118200.0,118190.0,1.13190481]
[1752647578347,0.43383129,118200.0,118190.0,0.7624828]
[1752647578546,0.43383129,118200.0,118190.0,1.13190481]
[1752647578849,0.49464729,118200.0,118190.0,0.77110481]
[1752647579145,0.49464729,118200.0,118190.0,1.49270481]
[1752647580249,0.66384469,118200.0,118190.0,1.49270481]
[1752647580852,0.49464729,118200.0,118190.0,1.49270481]
[1752647581346,0.49464729,118200.0,118190.0,1.1232828]
[1752647581545,0.49464729,118200.0,118190.0,1.49270481]
[1752647585050,0.49464729,118200.0,118190.0,2.08822481]
[1752647589452,0.49464729,118200.0,118190.0,1.7188028]
[1752647589652,0.49464729,118200.0,118190.0,2.08818481]
[1752647589852,0.49484729,118200.0,118190.0,2.08818481]
[1752647593959,0.49484729,118200.0,118190.0,1.36658481]
[1752647594151,0.49484729,118200.0,118190.0,2.08818481]
[1752647595060,0.49484729,118200.0,118190.0,1.99530934]
[1752647598659,0.48780729,118200.0,118190.0,1.99530934]
[1752647598956,0.07591546,118210.0,118200.0,0.1691974]
[1752647599159,0.07591546,118210.0,118200.0,1.08996048]
[1752647599358,0.07591546,118210.0,118200.0,1.10864355]
[1752647599558,0.08306546,118220.0,118210.0,0.1715431]
[1752647599855,0.00715,118220.0,118210.0,1.40859964]
[1752647600161,0.08306546,118220.0,118210.0,1.63359064]
[1752647600362,0.00715,118220.0,118210.0,1.63359064]
[1752647600762,0.18480996,118220.0,118210.0,1.3570441]
[1752647600964,0.00715,118220.0,118210.0,1.3570441]
[1752647601152,0.00715,118220.0,118210.0,1.3670441]
[1752647601358,0.1763188,118220.0,118210.0,1.3750441]
[1752647601862,0.00715,118220.0,118210.0,1.3750441]
[1752647602263,0.01572271,118220.0,118210.0,1.3750441]
[1752647604164,0.01572271,118220.0,118210.0,1.74368616]
[1752647604763,0.01572271,118220.0,118210.0,1.3750441]
[1752647604962,0.18489151,118220.0,118210.0,1.74368616]
[1752647605762,0.18489151,118220.0,118210.0,1.3750441]
[1752647606262,0.01572271,118220.0,118210.0,1.3750441]
[1752647607062,0.01572271,118220.0,118210.0,1.44335697]
[1752647607260,0.18489151,118220.0,118210.0,1.44335697]
[1752647608860,0.26080697,118220.0,118210.0,1.44335697]
[1752647609259,0.09163817,118220.0,118210.0,1.44335697]
[1752647611160,0.09163817,118220.0,118210.0,0.84815697]
[1752647611464,0.62944903,118220.0,118210.0,1.44303697]
[1752647611764,0.62944903,118220.0,118210.0,1.08223697]
[1752647612359,0.26080697,118220.0,118210.0,1.08223697]
[1752647612665,0.26080697,118220.0,118210.0,1.44303697]
[1752647612858,0.62944903,118220.0,118210.0,1.44303697]
[1752647613060,0.46028023,118220.0,118210.0,1.44303697]
[1752647613259,0.38436477,118220.0,118210.0,1.44303697]
[1752647613456,0.55353357,118220.0,118210.0,1.44303697]
[1752647613762,0.38436477,118220.0,118210.0,1.44303697]
[1752647613964,0.55353357,118220.0,118210.0,1.44303697]
[1752647614371,0.01572271,118220.0,118210.0,1.44303697]
[1752647614666,0.09183762,118220.0,118210.0,1.44303697]
[1752647615466,0.26100652,118220.0,118210.0,1.44303697]
[1752647615668,0.26120652,118220.0,118210.0,1.44303697]
[1752647616265,0.26120652,118220.0,118210.0,1.81167903]
[1752647618965,0.18509161,118220.0,118210.0,1.81167903]
[1752647620975,0.46157694,118220.0,118210.0,1.7195223]
[1752647621473,0.18509161,118220.0,118210.0,1.7195223]
[1752647621672,0.46157694,118220.0,118210.0,1.7195223]
[1752647621971,0.46157694,118220.0,118210.0,1.7192023]
[1752647622967,0.52247695,118220.0,118210.0,1.7192023]
[1752647623168,0.46157694,118220.0,118210.0,1.7192023]
[1752647623367,0.24599435,118220.0,118210.0,1.7192023]
[1752647623567,0.52247968,118220.0,118210.0,1.7192023]
[1752647624375,0.52247968,118220.0,118210.0,1.44271697]
[1752647624675,0.52247968,118220.0,118210.0,1.7192023]
[1752647625973,0.23884435,118220.0,118210.0,1.7192023]
[1752647626268,0.51532968,118220.0,118210.0,1.7192023]
[1752647626775,0.23884435,118220.0,118210.0,1.7192023]
[1752647627073,0.51532968,118220.0,118210.0,1.7192023]
[1752647627877,0.52252968,118220.0,118210.0,1.7192023]
[1752647628970,0.52252968,118220.0,118210.0,1.1246423]
[1752647629166,0.52252968,118220.0,118210.0,1.7189623]
[1752647629472,0.79901501,118220.0,118210.0,1.7189623]
[1752647630175,0.73811227,118220.0,118210.0,1.7189623]
[1752647630678,0.46162694,118220.0,118210.0,1.7189623]
[1752647632077,0.46162694,118220.0,118210.0,1.44247697]
[1752647632276,0.46162694,118220.0,118210.0,1.7189623]
[1752647633678,0.46162694,118220.0,118210.0,1.3581623]
[1752647633978,0.46162694,118220.0,118210.0,1.7189623]
[1752647635181,0.46162694,118220.0,118210.0,1.44247697]
[1752647635380,0.73811227,118220.0,118210.0,1.44227697]
[1752647635681,0.73811227,118220.0,118210.0,1.43227697]
[1752647635880,0.73811227,118220.0,118210.0,1.43527697]
[1752647636180,0.73811227,118220.0,118210.0,1.43027697]
[1752647637076,0.55388106,118220.0,118210.0,1.43027697]
[1752647638081,0.62999597,118220.0,118210.0,1.43027697]
[1752647638477,0.62999597,118220.0,118210.0,1.3619641]
[1752647639080,0.55388106,118220.0,118210.0,1.0011641]
[1752647640685,0.66038742,118220.0,118210.0,1.0011641]
[1752647641775,0.66038742,118220.0,118210.0,0.4025341]
[1752647641980,0.91468106,118220.0,118210.0,0.4025342]
[1752647642281,0.99084855,118220.0,118210.0,0.230991]
[1752647642680,0.91468106,118220.0,118210.0,0.21173125]
[1752647642882,1.19051438,118220.0,118210.0,0.21173125]
[1752647643480,1.19051438,118220.0,118210.0,0.20873125]
[1752647643675,1.19051438,118220.0,118210.0,0.21073125]
[1752647643880,1.19051438,118220.0,118210.0,0.20773125]
[1752647644085,1.19051438,118220.0,118210.0,0.20973125]
[1752647644675,1.19051438,118220.0,118210.0,0.21673125]
[1752647645186,1.19051438,118220.0,118210.0,0.10242869]
[1752647645388,1.08386506,118220.0,118210.0,0.10242869]
[1752647645584,1.08386506,118220.0,118210.0,0.10742869]
[1752647646488,1.33386506,118220.0,118210.0,0.10742869]
[1752647647185,1.1903505,118220.0,118210.0,0.10742869]
[1752647656600,1.0211665,118220.0,118210.0,0.10742869]
[1752647656897,1.65150999,118220.0,118210.0,0.10742869]
[1752647658206,1.48232599,118220.0,118210.0,0.10742869]
[1752647658505,1.65150999,118220.0,118210.0,0.10742869]
[1752647658703,1.54502455,118220.0,118210.0,0.10742869]
[1752647659400,1.86183157,118220.0,118210.0,0.10988869]
[1752647660004,1.86183157,118220.0,118210.0,0.10288869]
[1752647660206,1.86183157,118220.0,118210.0,0.10842869]
[1752647660701,1.86183157,118220.0,118210.0,0.09942869]
[1752647660903,1.86183157,118220.0,118210.0,0.10942869]
[1752647661304,2.13846455,118220.0,118210.0,0.10942869]
[1752647661600,1.96928055,118220.0,118210.0,0.10942869]
[1752647661805,2.13846455,118220.0,118210.0,0.10942869]
[1752647662705,1.96928055,118220.0,118210.0,0.10942869]
[1752647663306,1.96928055,118220.0,118210.0,0.04502502]
[1752647663307,2.07570394,118220.0,118210.0,0.04502502]
[1752647663600,2.07570394,118220.0,118210.0,0.21420822]
[1752647664204,1.79907096,118220.0,118210.0,0.21420822]
[1752647664409,1.245685,118220.0,118210.0,0.4979012]
[1752647664707,0.99234908,118220.0,118210.0,0.58206822]
[1752647664906,1.33172757,118220.0,118210.0,0.22126822]
[1752647665412,1.51418186,118220.0,118210.0,0.22126822]
[1752647665713,1.40775847,118220.0,118210.0,0.21326822]
[1752647665914,1.40775847,118220.0,118210.0,0.21626822]
[1752647666104,1.40775847,118220.0,118210.0,0.57706822]
[1752647666303,1.23858957,118220.0,118210.0,0.57706822]
[1752647667110,1.22318846,118220.0,118210.0,0.57006822]
[1752647670711,1.20798317,118220.0,118210.0,0.57006822]
[1752647671905,1.20798317,118220.0,118210.0,0.20926822]
[1752647672210,1.20798317,118220.0,118210.0,0.57006822]
[1752647673408,1.20798317,118220.0,118210.0,0.20926822]
[1752647673616,1.14715756,118220.0,118210.0,0.20926822]
[1752647673910,1.20798268,118220.0,118210.0,0.20926822]
[1752647674113,0.55383756,118220.0,118210.0,0.20466822]
[1752647674305,1.14679756,118220.0,118210.0,0.20466822]
[1752647678009,1.14671756,118220.0,118210.0,0.20466822]
[1752647678209,1.22274846,118220.0,118210.0,0.20466822]
[1752647678416,1.22274846,118220.0,118210.0,0.20926822]
[1752647680116,1.22274846,118220.0,118210.0,0.20466822]
[1752647681515,1.58354846,118220.0,118210.0,0.20466822]
[1752647681917,1.58354846,118220.0,118210.0,0.20926822]
[1752647682319,1.58354846,118220.0,118210.0,0.20466822]
[1752647683007,1.58354846,118220.0,118210.0,0.20924822]
[1752647683210,0.97547204,118220.0,118210.0,0.20924822]
[1752647683514,1.56815204,118220.0,118210.0,0.20924822]
[1752647684216,1.50731756,118220.0,118210.0,0.20924822]
[1752647685018,1.50731756,118220.0,118210.0,0.20466822]
[1752647686220,1.50731756,118220.0,118210.0,0.03302502]
[1752647688420,1.14651756,118220.0,118210.0,0.03302502]
[1752647688619,1.50731756,118220.0,118210.0,0.03302502]
[1752647689019,1.96839914,118220.0,118210.0,0.03302502]
[1752647689321,1.96839914,118220.0,118210.0,0.20220792]
[1752647689519,1.69180663,118220.0,118210.0,0.20220792]
[1752647691215,1.76783753,118220.0,118210.0,0.20220792]
[1752647692314,1.69180663,118220.0,118210.0,0.20220792]
[1752647692716,1.76792004,118220.0,118210.0,0.20220792]
[1752647693116,1.69180663,118220.0,118210.0,0.20220792]
[1752647693922,1.76793485,118220.0,118210.0,0.20220792]
[1752647694124,1.96839914,118220.0,118210.0,0.20220792]
[1752647694717,1.69180663,118220.0,118210.0,0.20220792]
[1752647695218,1.76795877,118220.0,118210.0,0.20220792]
[1752647695625,1.21477375,118220.0,118210.0,0.20220792]
[1752647695828,1.76795877,118220.0,118210.0,0.20220792]
[1752647696326,1.76795877,118220.0,118210.0,0.20460792]
[1752647696527,1.76795877,118220.0,118210.0,0.20918792]
[1752647696724,1.40715877,118220.0,118210.0,0.56998792]
[1752647696928,1.40715877,118220.0,118210.0,0.20918792]
[1752647697121,0.15304408,118220.0,118210.0,1.43882043]
[1752647697426,0.24604044,118220.0,118210.0,1.43882043]
[1752647697624,0.07687194,118220.0,118210.0,1.43882043]
[1752647697821,0.35346445,118220.0,118210.0,1.43882043]
[1752647698220,0.29254522,118220.0,118210.0,1.43882043]
[1752647698730,0.46171382,118220.0,118210.0,1.43882043]
[1752647699430,0.18512131,118220.0,118210.0,1.43882043]
[1752647699635,0.52262315,118220.0,118210.0,1.43882043]
[1752647700724,0.51793315,118220.0,118210.0,1.43882043]
[1752647700925,0.24134064,118220.0,118210.0,1.16222792]
[1752647701132,0.07635214,118220.0,118210.0,1.54932761]
[1752647701629,0.0002,118220.0,118210.0,1.54932761]
[1752647702030,0.08154214,118230.0,118220.0,0.1761486]
[1752647702330,0.10642339,118240.0,118230.0,0.19334944]
[1752647702526,0.43418689,118250.0,118240.0,0.1715399]
[1752647702726,0.00469,118250.0,118240.0,0.5353399]
[1752647702925,0.23468946,118250.0,118240.0,0.5353399]
[1752647703228,0.06556386,118250.0,118240.0,0.90396134]
[1752647703627,0.06556386,118250.0,118240.0,1.1272999]
[1752647703827,0.00698,118250.0,118240.0,1.1951808]
[1752647704029,0.00698,118250.0,118240.0,0.6032208]
[1752647704234,0.1761056,118250.0,118240.0,1.1951008]
[1752647704822,0.54472704,118250.0,118240.0,1.2021008]
[1752647705026,0.55329062,118250.0,118240.0,1.2021008]
[1752647705227,0.38416502,118250.0,118240.0,1.22912582]
[1752647705430,0.01554358,118250.0,118240.0,1.22912582]
[1752647705733,0.00698,118250.0,118240.0,1.22912582]
[1752647705933,0.00698,118250.0,118240.0,1.23812582]
[1752647706732,0.00469,118250.0,118240.0,1.60674726]
[1752647706933,0.37560144,118260.0,118250.0,0.1715256]
[1752647707133,0.37560144,118260.0,118250.0,0.5353256]
[1752647707731,0.00698,118260.0,118250.0,0.5353256]
[1752647708127,0.00698,118260.0,118250.0,0.5413256]
[1752647708438,0.00698,118260.0,118250.0,0.5483256]
[1752647709238,0.01521653,118260.0,118250.0,0.5483256]
[1752647709439,0.00698,118260.0,118250.0,0.5483256]
[1752647710234,0.00698,118260.0,118250.0,0.57535062]
[1752647711044,0.37560144,118260.0,118250.0,0.57535062]
[1752647711837,0.00698,118260.0,118250.0,0.57535062]
[1752647713448,0.55298305,118260.0,118250.0,0.57535062]
[1752647713743,0.38387175,118260.0,118250.0,0.57535062]
[1752647714337,0.01525031,118260.0,118250.0,0.57535062]
[1752647714537,0.38387175,118260.0,118250.0,0.57535062]
[1752647715746,0.55298305,118260.0,118250.0,0.57535062]
[1752647715945,0.38387175,118260.0,118250.0,0.57535062]
[1752647716348,0.1760456,118280.0,118270.0,0.1714971]
[1752647716643,0.1760456,118280.0,118270.0,0.7629771]
[1752647716644,0.54466704,118280.0,118270.0,0.7629771]
[1752647716848,1.27408848,118280.0,118270.0,0.7628971]
[1752647717150,0.90546704,118280.0,118270.0,0.7628971]
[1752647717437,0.90546704,118280.0,118270.0,1.55672446]
[1752647717438,0.01312755,118280.0,118270.0,1.55672446]
[1752647717738,0.01312755,118280.0,118270.0,0.83130302]
[1752647717935,0.01312755,118280.0,118270.0,1.56072446]
[1752647718335,0.01552755,118280.0,118270.0,1.56072446]
[1752647718640,0.00695,118280.0,118270.0,1.56072446]
[1752647718835,0.00715,118280.0,118270.0,1.56072446]
[1752647719233,0.00715,118280.0,118270.0,1.19210302]
[1752647719438,0.00715,118280.0,118270.0,0.60070302]
[1752647719644,0.37577144,118280.0,118270.0,0.60070302]
[1752647719844,0.54485424,118280.0,118270.0,1.14670972]
[1752647720034,0.54485424,118280.0,118270.0,1.14270972]
[1752647720240,0.1762328,118280.0,118270.0,1.17273474]
[1752647720544,0.54485424,118280.0,118270.0,1.17273474]
[1752647721044,0.54485424,118280.0,118270.0,1.16973474]
[1752647721342,0.55341104,118280.0,118270.0,1.16973474]
[1752647722647,0.38432824,118280.0,118270.0,1.16973474]
[1752647722946,0.0157068,118280.0,118270.0,1.17273474]
[1752647723539,0.0157068,118280.0,118270.0,1.54135618]
[1752647723937,0.00715,118280.0,118270.0,1.54135618]
[1752647724441,0.00475,118280.0,118270.0,1.54135618]
[1752647724642,0.01304251,118280.0,118270.0,1.54135618]
[1752647725143,0.00475,118280.0,118270.0,1.17273474]
[1752647725544,0.0002,118280.0,118270.0,1.54135618]
[1752647728149,0.00874976,118280.0,118270.0,1.54135618]
[1752647728345,0.0002,118280.0,118270.0,1.54135618]
[1752647730050,0.00844918,118280.0,118270.0,1.54135618]
[1752647730250,0.01299918,118280.0,118270.0,1.54135618]
[1752647731250,0.01299918,118280.0,118270.0,1.17273474]
[1752647731445,0.00475,118280.0,118270.0,1.54135618]
[1752647731651,0.0002,118280.0,118270.0,1.54135618]
[1752647732052,0.0002,118280.0,118270.0,1.52210807]
[1752647733454,0.0002,118280.0,118270.0,1.15348663]
[1752647733754,0.0002,118280.0,118270.0,1.52210807]
[1752647734156,0.00475,118280.0,118270.0,1.52210807]
[1752647736358,0.0002,118280.0,118270.0,1.52210807]
[1752647740264,0.0002,118280.0,118270.0,1.50286082]
[1752647740670,0.0002,118280.0,118270.0,1.52170693]
[1752647744066,0.26974748,118300.0,118290.0,0.1697085]
[1752647744259,0.26974748,118300.0,118290.0,1.1214685]
[1752647744869,0.27799492,118300.0,118290.0,1.1214685]
[1752647745170,0.27799492,118300.0,118290.0,1.14849352]
[1752647745371,0.27799492,118300.0,118290.0,1.15849352]
[1752647746674,0.27799492,118300.0,118290.0,1.16609352]
[1752647746874,0.64661636,118300.0,118290.0,1.16609352]
[1752647748377,0.64661636,118300.0,118290.0,1.14684688]
[1752647749182,0.72238086,118300.0,118290.0,1.14684688]
[1752647750483,0.72238086,118300.0,118290.0,1.14668688]
[1752647750978,0.72238086,118300.0,118290.0,0.55564688]
[1752647751183,1.08318086,118300.0,118290.0,0.63542502]
[1752647751384,1.08318086,118300.0,118290.0,0.80449352]
[1752647751677,1.08318086,118300.0,118290.0,0.04502502]
[1752647751878,1.08318086,118300.0,118270.0,0.01884611]
[1752647751879,0.1762228,118280.0,118270.0,0.01093705]
[1752647752079,0.1762371,118270.0,118260.0,0.1697473]
[1752647752279,0.1762514,118260.0,118250.0,0.18805008]
[1752647752485,0.90567284,118260.0,118250.0,0.18805008]
[1752647752684,0.92289889,118260.0,118250.0,0.18805008]
[1752647753481,1.51325889,118260.0,118250.0,0.18805008]
[1752647753881,1.51325889,118260.0,118250.0,0.19105008]
[1752647754081,1.14463745,118260.0,118250.0,0.19405008]
[1752647754282,1.15245889,118260.0,118250.0,0.19405008]
[1752647754680,1.2132228,118260.0,118250.0,0.19405008]
[1752647754885,1.2132228,118260.0,118250.0,0.41904108]
[1752647755574,1.2132228,118260.0,118250.0,0.41604108]
[1752647755784,1.2202228,118260.0,118250.0,0.41304108]
[1752647755981,0.6428628,118260.0,118250.0,0.41404108]
[1752647756786,0.27424136,118260.0,118250.0,0.78330252]
[1752647757080,0.10512996,118260.0,118250.0,0.78330252]
[1752647757290,0.10512996,118260.0,118250.0,1.37402252]
[1752647757587,0.04436605,118260.0,118250.0,1.37402252]
[1752647757984,0.21347745,118260.0,118250.0,1.37402252]
[1752647758787,0.21347745,118260.0,118250.0,1.00540108]
[1752647759790,0.21347745,118260.0,118250.0,1.00500108]
[1752647760788,0.21347745,118260.0,118250.0,1.00540108]
[1752647760982,0.21367745,118260.0,118250.0,1.00540108]
[1752647762088,0.03742605,118260.0,118250.0,1.73482252]
[1752647762284,0.09818996,118260.0,118250.0,1.73482252]
[1752647762495,0.03742605,118260.0,118250.0,1.73482252]
[1752647768192,0.04213605,118260.0,118250.0,1.73482252]
[1752647770288,0.03742605,118260.0,118250.0,1.73482252]
[1752647777396,0.0202,118260.0,118250.0,1.73482252]
[1752647777598,0.08274722,118280.0,118270.0,0.1701371]
[1752647777799,0.08274722,118280.0,118270.0,1.48955854]
[1752647778799,0.08274722,118280.0,118270.0,1.49455854]
[1752647779097,0.08274722,118280.0,118270.0,1.49955854]
[1752647779504,0.06076391,118280.0,118270.0,1.49955854]
[1752647779700,0.06798391,118290.0,118280.0,0.1697228]
[1752647780008,0.06798391,118290.0,118280.0,0.89914424]
[1752647780204,0.06798391,118290.0,118280.0,0.7555138]
[1752647781001,0.06798391,118290.0,118280.0,1.12413524]
[1752647782409,0.06798391,118290.0,118280.0,1.13413524]
[1752647782705,0.23705241,118290.0,118280.0,1.13413524]
[1752647782902,0.06798391,118290.0,118280.0,0.7655138]
[1752647783706,0.23705241,118290.0,118280.0,0.7655138]
[1752647784603,0.23705241,118290.0,118280.0,0.7685138]
[1752647785309,0.60567385,118290.0,118280.0,0.7685138]
[1752647785510,0.60567385,118290.0,118280.0,1.3583138]
[1752647786416,0.60567385,118290.0,118280.0,0.7685138]
[1752647786615,0.60567385,118290.0,118280.0,1.3582738]
[1752647787106,0.54490994,118290.0,118280.0,1.3582738]
[1752647789912,0.1762885,118290.0,118280.0,1.3582738]
[1752647790107,0.54490994,118290.0,118280.0,1.3582738]
[1752647791512,0.54490994,118290.0,118280.0,1.3581938]
[1752647791905,0.54490994,118290.0,118280.0,0.7678738]
[1752647792114,0.60567385,118290.0,118280.0,1.3575538]
[1752647794517,0.23705241,118290.0,118280.0,1.3575538]
[1752647794706,0.23725241,118290.0,118280.0,1.3575538]
[1752647796716,0.23725241,118290.0,118280.0,1.72617524]
[1752647796912,0.23725241,118290.0,118280.0,1.72657524]
[1752647797315,0.26725241,118290.0,118280.0,1.72657524]
[1752647797919,0.2064885,118290.0,118280.0,1.72657524]
[1752647798219,0.2064885,118290.0,118280.0,1.3579538]
[1752647800120,0.2064885,118290.0,118280.0,1.72657524]
[1752647800419,0.282253,118290.0,118280.0,1.3579538]
[1752647801019,0.2064885,118290.0,118280.0,1.3579538]
[1752647802320,0.2064885,118290.0,118280.0,1.72657524]
[1752647802820,0.2064885,118290.0,118280.0,1.3579538]
[1752647803322,0.26732588,118290.0,118280.0,1.3579538]
[1752647803521,0.2064885,118290.0,118280.0,1.3579538]
[1752647805123,0.03742,118290.0,118280.0,1.3579538]
[1752647808321,0.1131845,118290.0,118280.0,1.3579538]
[1752647810238,0.282253,118290.0,118280.0,1.3579538]
[1752647811030,0.2064885,118290.0,118280.0,1.3579538]
[1752647811530,0.03742,118290.0,118280.0,1.3579538]
[1752647814535,0.03496,118290.0,118280.0,1.3579538]
[1752647814727,0.1107245,118290.0,118280.0,1.3579538]
[1752647814924,0.03496,118290.0,118280.0,1.3579538]
[1752647817638,0.03496,118290.0,118280.0,1.72657524]
[1752647818539,0.09586459,118290.0,118280.0,1.72657524]
[1752647821140,0.0302,118290.0,118280.0,2.09519668]
[1752647821337,0.0302,118290.0,118280.0,1.72657524]
[1752647822034,0.0302,118290.0,118280.0,1.3579538]
[1752647822235,0.0302,118290.0,118280.0,1.72657524]
[1752647822737,0.0302,118290.0,118280.0,1.3579538]
[1752647822940,0.0302,118290.0,118280.0,1.72657524]
[1752647826546,0.03492,118290.0,118280.0,1.72657524]
[1752647827538,0.63580453,118290.0,118280.0,1.3574738]
[1752647830344,0.57489994,118290.0,118280.0,1.3574738]
[1752647830743,0.57489994,118290.0,118280.0,0.9966738]
[1752647831340,0.65066444,118290.0,118280.0,0.9966738]
[1752647832644,0.63575896,118290.0,118280.0,0.9966738]
[1752647833448,0.57489994,118290.0,118280.0,0.9966738]
[1752647835848,0.03492,118290.0,118280.0,1.36569524]
[1752647836450,0.09577948,118290.0,118280.0,1.72649524]
[1752647836846,0.26484788,118290.0,118280.0,1.72649524]
[1752647837047,0.26713788,118290.0,118280.0,1.72649524]
[1752647837247,0.57489984,118290.0,118280.0,1.3574738]
[1752647838450,0.65066434,118290.0,118280.0,1.3574738]
[1752647838747,0.2820429,118290.0,118280.0,1.3574738]
[1752647839046,0.2820429,118290.0,118280.0,1.72649524]
[1752647839748,0.2820429,118290.0,118280.0,1.3578738]
[1752647842851,0.65066434,118290.0,118280.0,1.3578738]
[1752647845252,0.65066434,118290.0,118280.0,0.7685138]
[1752647845453,0.65066434,118290.0,118280.0,0.4077138]
[1752647847152,0.57489984,118290.0,118280.0,0.4077138]
[1752647847650,0.65066434,118290.0,118280.0,0.4077138]
[1752647848856,0.57489984,118290.0,118280.0,0.4077138]
[1752647851058,0.65066434,118290.0,118280.0,0.4077138]
[1752647852860,0.57489984,118290.0,118280.0,0.4077138]
[1752647853062,0.65096341,118290.0,118280.0,0.4077138]
[1752647853462,0.66782513,118290.0,118280.0,0.4077138]
[1752647854153,1.02862513,118290.0,118280.0,0.4077138]
[1752647854356,1.02862513,118290.0,118280.0,0.237991]
[1752647854557,1.02862513,118290.0,118280.0,0.4070738]
[1752647854756,0.95256156,118290.0,118280.0,0.4070738]
[1752647856263,0.95256156,118290.0,118280.0,0.4077138]
[1752647856465,0.59176156,118290.0,118280.0,0.4077138]
[1752647857063,0.69818495,118290.0,118280.0,0.4077138]
[1752647858865,1.28650495,118290.0,118280.0,0.4077138]
[1752647859862,0.69818495,118290.0,118280.0,0.4077138]
[1752647860062,0.12783994,118290.0,118280.0,1.13753524]
[1752647860262,0.05178172,118290.0,118280.0,1.72585524]
[1752647860659,0.12783782,118290.0,118280.0,1.72585524]
[1752647863160,0.04706172,118290.0,118280.0,1.72585524]
[1752647863361,0.12311782,118290.0,118280.0,1.72585524]
[1752647864464,0.04706172,118290.0,118280.0,1.72585524]
[1752647865858,0.05205172,118290.0,118280.0,1.72585524]
[1752647866865,0.12810782,118290.0,118280.0,1.72585524]
[1752647868669,0.05205172,118290.0,118280.0,1.72585524]
[1752647871475,0.11288552,118290.0,118280.0,1.72585524]
[1752647872466,0.11288552,118290.0,118280.0,1.3572338]
[1752647872669,0.11288552,118290.0,118280.0,1.72585524]
[1752647874279,0.11288552,118290.0,118280.0,1.3572338]
[1752647875489,0.11288552,118290.0,118280.0,1.72585524]
[1752647876284,0.28195402,118290.0,118280.0,1.72585524]
[1752647876977,0.11288552,118290.0,118280.0,1.72585524]
[1752647881192,0.12311782,118290.0,118280.0,1.72585524]
[1752647882487,0.04706172,118290.0,118280.0,1.72585524]
[1752647882786,0.04706172,118290.0,118280.0,1.3572338]
[1752647883088,0.10788782,118290.0,118280.0,1.72585524]
[1752647883387,0.10788945,118290.0,118280.0,1.72585524]
[1752647883989,0.12311782,118290.0,118280.0,1.72585524]
[1752647886685,0.10790011,118290.0,118280.0,1.74489214]
[1752647887182,0.10790011,118290.0,118280.0,1.92846706]
[1752647887585,0.10790011,118290.0,118280.0,1.93692296]
[1752647888388,0.10790011,118290.0,118280.0,1.92692296]
[1752647889085,0.09867494,118300.0,118290.0,0.1690684]
[1752647889086,0.08506968,118300.0,118290.0,0.1690684]
[1752647889290,0.08506968,118300.0,118290.0,1.15013183]
[1752647889487,0.00901358,118300.0,118290.0,1.15013183]
[1752647890191,0.00901358,118300.0,118290.0,1.09902465]
[1752647890390,0.01400358,118300.0,118290.0,1.68662465]
[1752647891086,0.01400358,118300.0,118290.0,1.77863574]
[1752647891286,0.0223548,118300.0,118290.0,1.77863574]
[1752647891791,0.0223548,118300.0,118290.0,1.78163574]
[1752647891985,0.01400358,118300.0,118290.0,1.78163574]
[1752647892185,0.00901358,118300.0,118290.0,1.78163574]
[1752647892386,0.00901358,118300.0,118290.0,1.78563574]
[1752647895490,0.00243,118320.0,118310.0,0.295799]
[1752647895691,0.00243,118320.0,118310.0,1.61218827]
[1752647895892,0.1714556,118320.0,118310.0,1.65444717]
[1752647896189,0.00705,118320.0,118310.0,1.65444717]
[1752647896591,0.00705,118320.0,118310.0,1.2863379]
[1752647896894,0.1760756,118320.0,118310.0,1.2923379]
[1752647897194,0.00705,118320.0,118310.0,1.3013379]
[1752647897495,0.1760756,118320.0,118310.0,1.3013379]
[1752647897994,0.1760756,118320.0,118310.0,1.66944717]
[1752647898193,0.00462,118320.0,118310.0,1.66944717]
[1752647898390,0.1736456,118320.0,118310.0,1.66944717]
[1752647898788,0.18220848,118320.0,118310.0,1.66944717]
[1752647899591,0.18463848,118320.0,118310.0,1.3013379]
[1752647899788,0.55274775,118320.0,118310.0,0.671599]
[1752647900084,0.55274775,118320.0,118310.0,1.258959]
[1752647900290,0.55274775,118320.0,118310.0,1.48395]
[1752647900596,0.55274775,118320.0,118310.0,0.89659]
[1752647900894,0.55274775,118320.0,118310.0,1.48391]
[1752647903096,0.55274775,118320.0,118310.0,0.89659]
[1752647903296,0.55274775,118320.0,118310.0,1.48387]
[1752647903598,0.6135194,118320.0,118310.0,1.48387]
[1752647906102,0.55274775,118320.0,118310.0,0.8543311]
[1752647906302,0.55294775,118320.0,118310.0,1.4415711]
[1752647908302,0.55294775,118320.0,118310.0,1.4435711]
[1752647908501,0.62889668,118320.0,118310.0,1.4435711]
[1752647909304,0.62889668,118320.0,118310.0,1.4445711]
[1752647911004,0.26078741,118320.0,118310.0,1.4445711]
[1752647914405,0.18483848,118320.0,118310.0,1.4445711]
[1752647914607,0.55294775,118320.0,118310.0,1.4445711]
[1752647915408,0.18483848,118320.0,118310.0,1.4445711]
[1752647915608,0.55294775,118320.0,118310.0,1.4445711]
[1752647916208,0.62889668,118320.0,118310.0,1.4445711]
[1752647919708,0.62889668,118320.0,118310.0,1.4442511]
[1752647921306,0.65937114,118320.0,118310.0,1.4442511]
[1752647923123,0.29126187,118320.0,118310.0,1.4442511]
[1752647923415,0.65937114,118320.0,118310.0,1.4442511]
[1752647923608,0.55294775,118320.0,118310.0,1.4442511]
[1752647924418,0.65937114,118320.0,118310.0,1.4442511]
[1752647925516,0.6290593,118320.0,118310.0,1.4442511]
[1752647926318,0.00876288,118320.0,118310.0,1.81236037]
[1752647926511,0.08487443,118320.0,118310.0,1.81236037]